[Event "FIDE World Cup O12-B 2024"]
[Site "Batumi"]
[Date "2024.06.27"]
[Round "5.7"]
[White "Chia, Yu Zhe Ashton"]
[Black "Tatvidze, Davit"]
[Result "0-1"]
[ECO "B30"]
[WhiteElo "2229"]
[BlackElo "2000"]
[Annotator "RC"]
[PlyCount "88"]
[EventDate "2024.06.23"]
[EventType "swiss"]
[EventCountry "GEO"]
[SourceTitle "playchess.com"]
[Source "ChessBase"]
[SourceQuality "1"]
[TimeControl "5400+30"]

1. e4 {[%emt 0:00:02]} c5 {[%emt 0:00:04]} 2. Nf3 {[%emt 0:00:02]} Nc6 {[%emt 0:00:03]} 3. Bc4 {[%emt 0:00:04]} e6 {[%emt 0:00:46]} 4. O-O {[%emt 0:00:04]} d5 {[%emt 0:13:21]} 5. exd5 {[%emt 0:00:08]} exd5 {[%emt 0:00:03]} 6. Bb5 {[%emt 0:00:02]} Bd6 {[%emt 0:04:11]} 7. d4 {[%emt 0:00:23]} Nge7 {[%emt 0:09:02]} 8. c4 {[%emt 0:03:44]} O-O {[%emt 0:08:26]} 9. Bg5 {[%emt 0:00:35]} f6 {[%emt 0:13:04]} 10. Be3 {[%emt 0:01:07]} cxd4 {[%emt 0:02:25]} 11. Bxc6 {[%emt 0:02:47]} Nxc6 {[%emt 0:09:01]} 12. Nxd4 {[%emt 0:01:52]} Nxd4 {[%emt 0:00:06]} 13. Qxd4 {[%emt 0:00:19]} Be5 {[%emt 0:00:06]} 14. Qd2 {[%emt 0:01:01]} dxc4 {[%emt 0:01:12]} 15. Qc2 {[%emt 0:00:04]} Qc7 {[%emt 0:06:02]} 16. f4 {[%emt 0:02:03]} Bd6 {[%emt 0:00:52]} 17. Nd2 {[%emt 0:00:26]} Be6 {[%emt 0:01:37]} 18. Rac1 {[%emt 0:06:19]} b5 {[%emt 0:09:19]} 19. Kh1 {[%emt 0:03:23]} Rac8 {[%emt 0:00:53]} 20. Nf3 {[%emt 0:01:37]} Qb7 {[%emt 0:09:42]} 21. Rcd1 {[%emt 0:05:43]} Rcd8 {[%emt 0:04:00]} 22. Qf2 {[%emt 0:02:41]} Bd5 {[%emt 0:03:02]} 23. Nd4 {[%emt 0:02:14]} Rfe8 {[%emt 0:01:45]} 24. Nf5 {[%emt 0:01:25]} Bf8 {[%emt 0:01:19]} 25. Qg3 {[%emt 0:10:04]} Kh8 {[%emt 0:01:37]} 26. Bd4 {[%emt 0:11:23]} Be4 {[%emt 0:00:34]} 27. Nh6 {[%emt 0:21:30]} Rxd4 {[%emt 0:00:23]} 28. Rxd4 {[%emt 0:00:19]} gxh6 {[%emt 0:00:04]} 29. Rd2 {[%emt 0:01:06]} Bb4 {[%emt 0:00:37]} 30. Rdf2 {[%emt 0:23:03]} Rg8 {[%emt 0:00:15]} 31. Qh3 {[%emt 0:00:00]} Bc5 {[%emt 0:00:28]} 32. Rd2 {[%emt 0:00:00]} b4 {[%emt 0:01:09]} 33. Re1 {[%emt 0:00:00]} c3 {[%emt 0:00:39]} 34. Rde2 {[%emt 0:00:00]} c2 {[%emt 0:00:27]} 35. Rc1 {[%emt 0:00:00]} Qd5 {[%emt 0:00:22]} 36. Rce1 {[%emt 0:00:00]} f5 {[%emt 0:00:46]} 37. a3 {[%emt 0:00:00]} bxa3 {[%emt 0:00:06]} 38. bxa3 {[%emt 0:00:00]} Bd4 {[%emt 0:00:46]} 39. Rd2 {[%emt 0:00:00]} Qc6 {[%emt 0:00:20]} 40. Rc1 {[%emt 0:00:00]} Bb2 {[%emt 0:00:22]} 41. Qe3 {[%emt 0:00:00]} Bxg2+ {[%emt 0:00:15]} 42. Kg1 {[%emt 0:00:00]} Bh3+ {[%emt 0:00:09]} 43. Kf2 {[%emt 0:00:00]} Qg2+ {[%emt 0:00:06]} 44. Ke1 {[%emt 0:01:04]} Qf1# {[%emt 0:02:44]} 0-1

[Event "FIDE World Cup O12-B 2024"]
[Site "Batumi"]
[Date "2024.06.27"]
[Round "5.8"]
[White "Minkhajdarov, Ruslan"]
[Black "Yusupov, Rauf"]
[Result "1-0"]
[ECO "C42"]
[WhiteElo "1921"]
[BlackElo "1800"]
[Annotator "RC"]
[PlyCount "39"]
[EventDate "2024.06.23"]
[EventType "swiss"]
[EventCountry "GEO"]
[SourceTitle "playchess.com"]
[Source "ChessBase"]
[SourceQuality "1"]
[TimeControl "5400+30"]

1. e4 {[%emt 0:00:16]} e5 {[%emt 0:00:05]} 2. Nf3 {[%emt 0:00:04]} Nf6 {[%emt 0:00:04]} 3. Nxe5 {[%emt 0:00:07]} d6 {[%emt 0:00:04]} 4. Nf3 {[%emt 0:00:08]} Nxe4 {[%emt 0:00:04]} 5. d4 {[%emt 0:00:06]} d5 {[%emt 0:00:03]} 6. Bd3 {[%emt 0:00:25]} Bd6 {[%emt 0:00:05]} 7. O-O {[%emt 0:00:23]} O-O {[%emt 0:00:07]} 8. c4 {[%emt 0:00:04]} c6 {[%emt 0:00:03]} 9. Nc3 {[%emt 0:00:05]} Nxc3 {[%emt 0:01:57]} 10. bxc3 {[%emt 0:00:02]} dxc4 {[%emt 0:00:12]} 11. Bxc4 {[%emt 0:00:06]} Bf5 {[%emt 0:02:56]} 12. Bg5 {[%emt 0:00:16]} Qc7 {[%emt 0:00:58]} 13. Nh4 {[%emt 0:04:00]} Bxh2+ {[%emt 0:16:19]} 14. Kh1 {[%emt 0:00:05]} Bf4 {[%emt 0:02:04]} 15. Nxf5 {[%emt 0:02:30]} Bxg5 {[%emt 0:00:06]} 16. f4 {[%emt 0:00:03]} Bf6 {[%emt 0:03:35]} 17. Qh5 {[%emt 0:00:14]} g6 {[%emt 0:15:48]} 18. Qh6 {[%emt 0:00:14]} Re8 {[%emt 0:19:07]} 19. Rf3 {[%emt 0:06:24]} b5 {[%emt 0:01:56]} 20. Rh3 {[%emt 1:24:58]} 1-0

[Event "FIDE World Cup O12-B 2024"]
[Site "Batumi"]
[Date "2024.06.27"]
[Round "5.9"]
[White "Pirtac, Alexandru"]
[Black "Ambartsumyan, Yuri"]
[Result "0-1"]
[ECO "C02"]
[WhiteElo "1977"]
[BlackElo "1750"]
[Annotator "NA RC"]
[PlyCount "110"]
[EventDate "2024.06.23"]
[EventType "swiss"]
[EventCountry "GEO"]
[SourceTitle "playchess.com"]
[Source "ChessBase"]
[SourceQuality "1"]
[TimeControl "5400+30"]

1. e4 {[%emt 0:00:48]} e6 {[%emt 0:00:03]} 2. d4 {[%emt 0:00:15]} d5 {[%emt 0:00:03]} 3. e5 {[%emt 0:01:07]} c5 {[%emt 0:00:04]} 4. c3 {[%emt 0:00:24]} Qb6 {[%emt 0:00:04]} 5. Nf3 {[%emt 0:01:57]} Nc6 {[%emt 0:00:07]} 6. Bd3 {[%emt 0:01:20]} cxd4 {[%emt 0:00:07]} 7. O-O {[%emt 0:00:07]} Bd7 {[%emt 0:00:49]} 8. a4 {[%emt 0:02:55]} dxc3 {[%emt 0:07:42]} 9. Nxc3 {[%emt 0:00:28]} Bc5 {[%emt 0:00:26]} 10. Bf4 {[%emt 0:05:33]} Nge7 {[%emt 0:05:29]} (10... Qxb2 $2 {is the wrong capture.} 11. Nb5 $18) 11. h4 {[%emt 0:03:00]} a6 {[%emt 0:09:40]} (11... Qxb2 $2 {is the wrong capture.} 12. Nb5 $18) 12. h5 {[%emt 0:12:14]} h6 {[%emt 0:00:55]} ({Resist} 12... Qxb2 13. Ne2 Qb6 14. h6 gxh6 15. Bxh6 $15) 13. Qd2 {[%emt 0:02:14]} O-O-O {[%emt 0:01:33]} (13... Na5 $17 14. Rab1 Nb3) 14. Nb5 {[%emt 0:13:39]} axb5 {[%emt 0:24:12]} 15. axb5 {[%emt 0:00:15]} Kb8 {[%emt 0:02:03]} 16. Rfc1 {[%emt 0:06:18]} Nd4 {[%emt 0:45:13]} 17. Rxc5 $19 {[%emt 0:04:09]} Nxf3+ {[%emt 0:00:00]} 18. gxf3 {[%emt 0:00:10]} Qxc5 {[%emt 0:00:00]} 19. Qa5 {[%emt 0:00:14]} Nc6 {[%emt 0:00:00]} 20. Qa4 {[%emt 0:05:35]} Qd4 {[%emt 0:00:00]} 21. Qa3 {[%emt 0:00:25]} Qb4 {[%emt 0:00:00]} 22. Qa2 {[%emt 0:01:25]} Kc7 {[%emt 0:00:00]} 23. bxc6 {[%emt 0:03:43]} Ra8 {[%emt 0:00:00]} 24. Qxa8 {[%emt 0:00:47]} Rxa8 {[%emt 0:00:00]} 25. Rxa8 {[%emt 0:00:13]} Qxf4 {[%emt 0:00:00]} 26. cxd7 {[%emt 0:00:12]} Kxd7 {[%emt 0:00:00]} 27. Bb5+ {[%emt 0:01:18]} Kc7 {[%emt 0:00:00]} 28. Rf8 {[%emt 0:00:20]} Qg5+ {[%emt 0:00:00]} 29. Kf1 {[%emt 0:00:13]} Qxh5 {[%emt 0:00:00]} 30. f4 {[%emt 0:00:52]} Qd1+ {[%emt 0:00:00]} 31. Kg2 {[%emt 0:00:47]} Qg4+ {[%emt 0:00:00]} 32. Kf1 {[%emt 0:00:10]} Qxf4 {[%emt 0:00:00]} 33. Be8 {[%emt 0:00:40]} Qxe5 {[%emt 0:00:00]} 34. Rxf7+ {[%emt 0:00:02]} Kb6 {[%emt 0:00:00]} 35. Bd7 {[%emt 0:00:34]} Qxb2 {[%emt 0:00:00]} 36. Re7 {[%emt 0:00:22]} Kc7 {[%emt 0:00:00]} 37. Be8+ {[%emt 0:01:20]} Kd6 {[%emt 0:00:00]} 38. Rd7+ {[%emt 0:00:05]} Ke5 {[%emt 0:00:00]} 39. Rxg7 {[%emt 0:00:20]} d4 {[%emt 0:00:00]} 40. Rg3 {[%emt 0:00:49]} b5 {[%emt 0:00:00]} 41. Bf7 {[%emt 0:00:59]} Kf6 {[%emt 0:00:00]} 42. Bg8 {[%emt 0:00:16]} b4 {[%emt 0:00:00]} 43. Rf3+ {[%emt 0:00:10]} Ke5 {[%emt 0:00:00]} 44. Rf8 {[%emt 0:00:49]} d3 {[%emt 0:00:00]} 45. Re8 {[%emt 0:00:04]} Qe2+ {[%emt 0:00:00]} 46. Kg2 {[%emt 0:00:15]} Qg4+ {[%emt 0:00:00]} 47. Kf1 {[%emt 0:00:24]} d2 {[%emt 0:00:00]} 48. f4+ {[%emt 0:00:39]} Kxf4 {[%emt 0:00:00]} 49. Rf8+ {[%emt 0:01:06]} Ke3 {[%emt 0:00:00]} 50. Rd8 {[%emt 0:00:18]} d1=Q+ {[%emt 0:00:00]} 51. Rxd1 {[%emt 0:00:05]} Qxd1+ {[%emt 0:00:00]} 52. Kg2 {[%emt 0:00:02]} Qg4+ {[%emt 0:00:00]} 53. Kh2 {[%emt 0:00:04]} Qxg8 {[%emt 0:00:00]} 54. Kh3 {[%emt 0:00:05]} Kf3 {[%emt 0:00:00]} 55. Kh2 {[%emt 0:00:08]} Qg2# {[%emt 0:00:00]} 0-1

[Event "FIDE World Cup O12-B 2024"]
[Site "Batumi"]
[Date "2024.06.27"]
[Round "5.10"]
[White "Akhmet, Suleyman"]
[Black "Amangeldy, Ramazan"]
[Result "1/2-1/2"]
[ECO "D14"]
[WhiteElo "1793"]
[BlackElo "1740"]
[Annotator "NA RC"]
[PlyCount "95"]
[EventDate "2024.06.23"]
[EventType "swiss"]
[EventCountry "GEO"]
[SourceTitle "playchess.com"]
[Source "ChessBase"]
[SourceQuality "1"]
[TimeControl "5400+30"]

1. d4 {[%emt 0:00:09]} d5 {[%emt 0:00:58]} 2. c4 {[%emt 0:00:02]} c6 {[%emt 0:00:06]} 3. cxd5 {[%emt 0:00:13]} cxd5 {[%emt 0:00:03]} 4. Nc3 {[%emt 0:00:02]} Nf6 {[%emt 0:01:00]} 5. Bf4 {[%emt 0:00:40]} Nc6 {[%emt 0:00:20]} 6. e3 {[%emt 0:00:05]} Bf5 {[%emt 0:00:54]} 7. Nf3 {[%emt 0:26:18]} e6 {[%emt 0:00:20]} 8. Qb3 {[%emt 0:02:09]} Qc8 {[%emt 0:06:27]} 9. Be2 {[%emt 0:01:14]} Be7 {[%emt 0:00:41]} 10. O-O {[%emt 0:00:42]} O-O {[%emt 0:00:35]} 11. Ne5 {[%emt 0:00:16]} Nxe5 {[%emt 0:06:11]} 12. Bxe5 {[%emt 0:00:59]} Nd7 {[%emt 0:00:15]} 13. Bf4 {[%emt 0:05:28]} Nb6 {[%emt 0:03:35]} 14. Rac1 {[%emt 0:59:13]} Qd7 {[%emt 0:02:16]} 15. Nb5 {[%emt 0:00:00]} Rfc8 {[%emt 0:01:59]} 16. Rxc8+ {[%emt 0:00:00]} Rxc8 {[%emt 0:06:33]} 17. Nxa7 {[%emt 0:00:00]} Rc2 {[%emt 0:05:59]} 18. Bd1 {[%emt 0:00:00]} Rc1 {[%emt 0:01:55]} 19. e4 {[%emt 0:00:00]} Rb1 {[%emt 0:03:26]} 20. Qxb6 {[%emt 0:03:00]} dxe4 {[%emt 0:01:35]} 21. Be2 {[%emt 0:00:00]} Rxf1+ {[%emt 0:01:02]} 22. Bxf1 {[%emt 0:00:00]} Bf8 {[%emt 0:00:37]} 23. Nb5 {[%emt 0:00:00]} h6 {[%emt 0:00:26]} 24. Bd6 {[%emt 0:00:00]} Bxd6 {[%emt 0:00:20]} 25. Qxd6 {[%emt 0:00:00]} Qc8 {[%emt 0:00:59]} 26. Nc3 {[%emt 0:00:00]} Qe8 {[%emt 0:02:20]} 27. a4 {[%emt 0:00:00]} f6 {[%emt 0:01:24]} 28. a5 {[%emt 0:00:00]} Qg6 {[%emt 0:00:26]} 29. Qg3 {[%emt 0:00:00]} Qh5 {[%emt 0:02:38]} 30. b4 {[%emt 0:00:00]} Qe8 {[%emt 0:01:49]} 31. b5 {[%emt 0:00:00]} Qd8 {[%emt 0:00:04]} 32. a6 {[%emt 0:00:00]} bxa6 {[%emt 0:00:06]} 33. bxa6 {[%emt 0:00:00]} Qxd4 {[%emt 0:00:05]} 34. Qe3 {[%emt 0:00:00]} Qd8 {[%emt 0:03:30]} 35. a7 {[%emt 0:00:00]} Kh7 {[%emt 0:05:56]} 36. Nb5 {[%emt 0:00:00]} e5 {[%emt 0:03:09]} 37. Nc7 {[%emt 0:00:00]} Qxc7 {[%emt 0:04:33]} 38. a8=Q {[%emt 0:00:00]} Qc2 {[%emt 0:00:32]} 39. h3 {[%emt 0:00:00]} Qb1 {[%emt 0:03:09]} 40. Qea7 {[%emt 0:00:00]} e3 {[%emt 0:00:12]} 41. Qf8 {[%emt 0:00:00]} exf2+ {[%emt 0:02:29]} 42. Kh2 {[%emt 0:00:00]} Bd7 {[%emt 0:00:13]} 43. Qxd7 {[%emt 0:00:00]} Qg6 {[%emt 0:01:06]} 44. Bd3 {[%emt 0:00:00]} e4 {[%emt 0:00:30]} 45. Bxe4 {[%emt 0:00:00]} f1=N+ {[%emt 0:30:17]} 46. Kg1 {[%emt 0:00:00]} f5 {[%emt 0:00:00]} 47. Bxf5 {[%emt 0:00:00]} Ng3 {[%emt 0:00:00]} 48. Qdxg7# {[%emt 0:00:00]} 1/2-1/2

[Event "FIDE World Cup O12-B 2024"]
[Site "Batumi"]
[Date "2024.06.27"]
[Round "5.11"]
[White "Atar, Semih Akif"]
[Black "Suleymanov, Askhab"]
[Result "1/2-1/2"]
[ECO "A36"]
[WhiteElo "1660"]
[BlackElo "1630"]
[Annotator "NA RC"]
[PlyCount "115"]
[EventDate "2024.06.23"]
[EventType "swiss"]
[EventCountry "GEO"]
[SourceTitle "playchess.com"]
[Source "ChessBase"]
[SourceQuality "1"]
[TimeControl "5400+30"]

1. c4 {[%emt 0:00:11]} Nf6 {[%emt 0:00:10]} 2. g3 {[%emt 0:00:09]} g6 {[%emt 0:00:16]} 3. Bg2 {[%emt 0:00:10]} Bg7 {[%emt 0:01:39]} 4. Nc3 {[%emt 0:00:12]} O-O {[%emt 0:03:33]} 5. d3 {[%emt 0:04:00]} d6 {[%emt 0:03:46]} 6. e4 {[%emt 0:00:36]} c5 {[%emt 0:06:58]} 7. Nge2 {[%emt 0:00:59]} Nc6 {[%emt 0:02:57]} 8. O-O {[%emt 0:01:40]} Bd7 {[%emt 0:11:07]} 9. Bd2 {[%emt 0:05:26]} Qc8 {[%emt 0:07:31]} 10. a3 {[%emt 0:01:30]} Bh3 {[%emt 0:08:29]} 11. Nf4 {[%emt 0:03:59]} Bxg2 {[%emt 0:00:59]} 12. Kxg2 {[%emt 0:00:20]} Ng4 {[%emt 0:14:45]} 13. Nfe2 {[%emt 0:17:53]} h5 {[%emt 0:05:08]} 14. h4 {[%emt 0:04:51]} Nd4 {[%emt 0:06:17]} 15. Nd5 {[%emt 0:04:35]} Qd7 {[%emt 0:03:20]} 16. f3 {[%emt 0:06:14]} Nf6 {[%emt 0:07:48]} 17. Nxd4 {[%emt 0:01:28]} cxd4 {[%emt 0:03:06]} 18. Bg5 {[%emt 0:02:01]} Nxd5 {[%emt 0:01:05]} 19. cxd5 {[%emt 0:00:21]} f6 {[%emt 0:01:57]} 20. Bf4 {[%emt 0:01:48]} Qb5 {[%emt 0:01:43]} 21. Rf2 {[%emt 0:02:53]} Kh7 {[%emt 0:01:19]} 22. Rc2 {[%emt 0:02:20]} Rac8 {[%emt 0:01:16]} 23. Rac1 {[%emt 0:01:55]} Qd7 {[%emt 0:06:51]} 24. Rc4 {[%emt 0:01:42]} Rxc4 {[%emt 0:00:00]} 25. Rxc4 {[%emt 0:00:00]} b5 {[%emt 0:00:09]} 26. Rc6 {[%emt 0:01:19]} Rb8 {[%emt 0:00:37]} 27. b4 {[%emt 0:01:20]} Rb7 {[%emt 0:00:30]} 28. Qc2 {[%emt 0:00:21]} Qd8 {[%emt 0:00:26]} 29. Rc8 {[%emt 0:00:34]} Qd7 {[%emt 0:00:02]} 30. Qc6 {[%emt 0:00:13]} f5 {[%emt 0:00:45]} 31. Qxd7 {[%emt 0:00:56]} Rxd7 {[%emt 0:00:01]} 32. Rb8 {[%emt 0:00:24]} Rc7 {[%emt 0:00:25]} 33. Rxb5 {[%emt 0:01:47]} Rc3 {[%emt 0:00:11]} 34. Ra5 {[%emt 0:00:38]} Rxd3 {[%emt 0:00:09]} 35. Rxa7 {[%emt 0:00:19]} fxe4 {[%emt 0:00:24]} 36. fxe4 {[%emt 0:00:08]} Rb3 {[%emt 0:01:10]} 37. e5 {[%emt 0:31:11]} dxe5 {[%emt 0:01:16]} 38. Bxe5 {[%emt 0:00:14]} Re3 {[%emt 0:00:43]} 39. d6 {[%emt 0:00:35]} Rxe5 {[%emt 0:00:18]} 40. Rxe7 {[%emt 0:00:15]} Rd5 {[%emt 0:00:23]} 41. Kf2 {[%emt 0:00:42]} Rxd6 {[%emt 0:00:19]} 42. b5 {[%emt 0:00:37]} Kg8 {[%emt 0:00:49]} 43. Ke2 {[%emt 0:00:22]} Kf8 {[%emt 0:00:37]} 44. Rc7 {[%emt 0:00:07]} Be5 {[%emt 0:00:27]} 45. a4 {[%emt 0:00:46]} Rd5 {[%emt 0:00:32]} 46. Rc6 {[%emt 0:00:17]} d3+ {[%emt 0:00:25]} 47. Kd2 {[%emt 0:00:31]} Rd6 {[%emt 0:00:20]} 48. Rxd6 {[%emt 0:01:35]} Bxd6 {[%emt 0:00:01]} 49. a5 {[%emt 0:00:01]} Bb4+ {[%emt 0:00:02]} 50. Kxd3 {[%emt 0:00:01]} Bxa5 {[%emt 0:00:16]} 51. Ke4 {[%emt 0:00:20]} Ke7 {[%emt 0:00:17]} 52. Kf3 {[%emt 0:00:16]} Kf7 {[%emt 0:02:17]} 53. g4 {[%emt 0:00:19]} hxg4+ {[%emt 0:00:29]} 54. Kxg4 {[%emt 0:00:04]} Kf6 {[%emt 0:00:35]} 55. h5 {[%emt 0:00:36]} g5 {[%emt 0:00:00]} 56. h6 {[%emt 0:00:10]} Bd2 {[%emt 0:00:21]} 57. b6 {[%emt 0:00:35]} Ke7 {[%emt 0:01:44]} 58. Kf3 {[%emt 0:04:44]} 1/2-1/2

[Event "FIDE World Cup O12-B 2024"]
[Site "Batumi"]
[Date "2024.06.27"]
[Round "5.12"]
[White "Khubuluri, Zaal"]
[Black "Cronje, Johannes Christiaan"]
[Result "1-0"]
[ECO "B15"]
[WhiteElo "1501"]
[BlackElo "1504"]
[Annotator "NA RC"]
[PlyCount "101"]
[EventDate "2024.06.23"]
[EventType "swiss"]
[EventCountry "GEO"]
[SourceTitle "playchess.com"]
[Source "ChessBase"]
[SourceQuality "1"]
[TimeControl "5400+30"]

1. e4 {[%emt 0:00:09]} c6 {[%emt 0:00:07]} 2. Nf3 {[%emt 0:00:13]} d5 {[%emt 0:00:31]} 3. Nc3 {[%emt 0:00:12]} dxe4 {[%emt 0:00:15]} 4. Nxe4 {[%emt 0:00:12]} Nf6 {[%emt 0:00:07]} 5. Nxf6+ {[%emt 0:00:53]} exf6 {[%emt 0:00:10]} 6. d4 {[%emt 0:00:55]} Bd6 {[%emt 0:00:17]} 7. Bc4 {[%emt 0:00:34]} O-O {[%emt 0:00:12]} 8. O-O {[%emt 0:00:44]} Bg4 {[%emt 0:00:09]} 9. Qd3 {[%emt 0:01:43]} Qc7 {[%emt 0:01:21]} 10. h3 {[%emt 0:02:31]} Bh5 {[%emt 0:01:27]} 11. Re1 {[%emt 0:05:50]} Nd7 {[%emt 0:00:30]} 12. Bd2 {[%emt 0:02:34]} Nb6 {[%emt 0:00:24]} 13. Bb3 {[%emt 0:01:25]} Bg6 {[%emt 0:00:25]} 14. Qf1 {[%emt 0:02:33]} Rfe8 {[%emt 0:01:39]} 15. c4 {[%emt 0:02:52]} Bf4 {[%emt 0:03:44]} 16. Bc3 {[%emt 0:03:35]} Qd7 {[%emt 0:02:39]} 17. d5 {[%emt 0:05:33]} cxd5 {[%emt 0:01:13]} 18. cxd5 {[%emt 0:00:33]} Be4 {[%emt 0:01:43]} 19. Rad1 {[%emt 0:04:52]} Bxd5 {[%emt 0:01:19]} 20. Bxd5 {[%emt 0:03:45]} Nxd5 {[%emt 0:00:17]} 21. Rxe8+ {[%emt 0:01:03]} Rxe8 {[%emt 0:00:11]} 22. Qc4 {[%emt 0:01:52]} Ne3 {[%emt 0:01:14]} 23. Rxd7 {[%emt 0:01:01]} Nxc4 {[%emt 1:22:06]} 24. Rd4 {[%emt 0:00:23]} Nxb2 {[%emt 0:00:00]} 25. Bxb2 {[%emt 0:00:51]} Bh6 {[%emt 0:00:00]} 26. Rd7 {[%emt 0:00:41]} Rb8 {[%emt 0:00:00]} 27. Bd4 {[%emt 0:00:28]} b5 {[%emt 0:00:00]} 28. Rxa7 {[%emt 0:00:28]} Bf4 {[%emt 0:00:00]} 29. g3 {[%emt 0:00:25]} Bc1 {[%emt 0:00:00]} 30. Rc7 {[%emt 0:00:28]} Ba3 {[%emt 0:00:00]} 31. Kg2 {[%emt 0:00:42]} b4 {[%emt 0:00:00]} 32. Ba7 {[%emt 0:00:41]} Re8 {[%emt 0:00:00]} 33. Bc5 {[%emt 0:00:31]} h6 {[%emt 0:00:00]} 34. Kf1 {[%emt 0:00:39]} Rb8 {[%emt 0:00:00]} 35. Nd4 {[%emt 0:00:41]} b3 {[%emt 0:00:00]} 36. axb3 {[%emt 0:02:28]} Bb2 {[%emt 0:00:00]} 37. Nc6 {[%emt 0:03:51]} Rxb3 {[%emt 0:00:00]} 38. Ne7+ {[%emt 0:00:17]} Kh7 {[%emt 0:00:00]} 39. Nf5 {[%emt 0:01:12]} Kg6 {[%emt 0:00:00]} 40. Nh4+ {[%emt 0:00:33]} Kh7 {[%emt 0:00:00]} 41. Rxf7 {[%emt 0:00:38]} Rb5 {[%emt 0:00:00]} 42. Be3 {[%emt 0:02:28]} Bc3 {[%emt 0:00:00]} 43. Kg2 {[%emt 0:00:48]} Rb2 {[%emt 0:00:00]} 44. Rc7 {[%emt 0:01:05]} Be5 {[%emt 0:00:00]} 45. Rd7 {[%emt 0:00:23]} f5 {[%emt 0:00:00]} 46. Nxf5 {[%emt 0:00:53]} Kg6 {[%emt 0:00:00]} 47. Nxg7 {[%emt 0:00:08]} Bxg7 {[%emt 0:00:00]} 48. Rxg7+ {[%emt 0:00:07]} Kh5 {[%emt 0:00:00]} 49. g4+ {[%emt 0:00:18]} Kh4 {[%emt 0:00:00]} 50. Bxh6 {[%emt 0:00:18]} Rb6 {[%emt 0:00:00]} 51. Bg5# {[%emt 0:00:41]} 1-0